[Event "Late-Titled-Tuesday-Blitz-October-10-2023"]
[Site "Chess.com"]
[Date "2023.10.10"]
[Round "3"]
[White "GoltsevDmitry2000"]
[Black "vladoboch"]
[Result "1-0"]
[WhiteElo "2700"]
[BlackElo "2455"]
[TimeControl "180+1"]
[EndTime "14:26:22 PDT"]
[Termination "GoltsevDmitry2000 won by resignation"]

1. e4 {[%clk 0:02:59.8]} 1... c5 {[%clk 0:02:59.4]} 2. Nf3 {[%clk 0:02:59.9]}
2... Nc6 {[%clk 0:03:00.1]} 3. d4 {[%clk 0:02:59.8]} 3... cxd4 {[%clk
0:03:00.8]} 4. Nxd4 {[%clk 0:03:00.7]} 4... e5 {[%clk 0:03:01.1]} 5. Nf5 {[%clk
0:03:00.2]} 5... d5 {[%clk 0:02:55.2]} 6. Qxd5 {[%clk 0:02:57.2]} 6... Qxd5
{[%clk 0:02:54]} 7. exd5 {[%clk 0:02:58.1]} 7... Bxf5 {[%clk 0:02:54.3]} 8. dxc6
{[%clk 0:02:57.7]} 8... bxc6 {[%clk 0:02:55]} 9. Bd3 {[%clk 0:02:58]} 9... Bxd3
{[%clk 0:02:46]} 10. cxd3 {[%clk 0:02:58.9]} 10... Nf6 {[%clk 0:02:41.2]} 11.
Nc3 {[%clk 0:02:58]} 11... Nd5 {[%clk 0:02:37.5]} 12. Ke2 {[%clk 0:02:53.9]}
12... Be7 {[%clk 0:02:22.3]} 13. Be3 {[%clk 0:02:49.3]} 13... O-O {[%clk
0:02:20.4]} 14. Nxd5 {[%clk 0:02:47.5]} 14... cxd5 {[%clk 0:02:19.8]} 15. Rhc1
{[%clk 0:02:48.1]} 15... Rfc8 {[%clk 0:02:12.4]} 16. Kd1 {[%clk 0:02:44.4]}
16... a6 {[%clk 0:01:53.5]} 17. a3 {[%clk 0:02:32.2]} 17... f5 {[%clk
0:01:51.9]} 18. Rxc8+ {[%clk 0:02:21.7]} 18... Rxc8 {[%clk 0:01:51.5]} 19. Rc1
{[%clk 0:02:22.4]} 19... Rxc1+ {[%clk 0:01:47.6]} 20. Kxc1 {[%clk 0:02:23.3]}
20... Kf7 {[%clk 0:01:47.8]} 21. Kc2 {[%clk 0:02:22.6]} 21... Ke6 {[%clk
0:01:47.9]} 22. b4 {[%clk 0:02:19.3]} 22... d4 {[%clk 0:01:46.4]} 23. Bd2 {[%clk
0:02:18.8]} 23... Kd5 {[%clk 0:01:47.2]} 24. f3 {[%clk 0:02:12.7]} 24... e4
{[%clk 0:01:40.9]} 25. fxe4+ {[%clk 0:02:11.5]} 25... fxe4 {[%clk 0:01:41.8]}
26. dxe4+ {[%clk 0:02:12.2]} 26... Kxe4 {[%clk 0:01:42.1]} 27. a4 {[%clk
0:02:12.1]} 27... g5 {[%clk 0:01:28.3]} 28. b5 {[%clk 0:02:11.4]} 28... axb5
{[%clk 0:01:27.6]} 29. axb5 {[%clk 0:02:12.3]} 29... g4 {[%clk 0:01:24.8]} 30.
b6 {[%clk 0:02:08.6]} 30... Bd6 {[%clk 0:01:23.5]} 31. g3 {[%clk 0:02:08.6]}
31... Kf3 {[%clk 0:01:19.9]} 32. Kd3 {[%clk 0:02:06]} 32... Bc5 {[%clk
0:00:59.6]} 33. b7 {[%clk 0:01:55.6]} 33... Ba7 {[%clk 0:00:59.8]} 34. Bb4
{[%clk 0:01:12.2]} 34... Kg2 {[%clk 0:00:56.7]} 35. Bc5 {[%clk 0:01:12.4]} 35...
Bb8 {[%clk 0:00:54.7]} 36. Bxd4 {[%clk 0:01:10.7]} 36... Kxh2 {[%clk 0:00:53.5]}
37. Ke4 {[%clk 0:01:11.1]} 37... h5 {[%clk 0:00:47.8]} 38. Bf6 {[%clk
0:01:02.1]} 38... Kh3 {[%clk 0:00:36.3]} 39. Bh4 {[%clk 0:01:00.8]} 39... Kg2
{[%clk 0:00:26.9]} 40. Kd5 {[%clk 0:01:00.4]} 40... Kf3 {[%clk 0:00:20.6]} 41.
Kc6 {[%clk 0:01:00]} 41... Ke4 {[%clk 0:00:20.7]} 42. Kd7 {[%clk 0:01:00.4]}
42... Kd5 {[%clk 0:00:20.7]} 43. Kc8 {[%clk 0:01:01]} 43... Be5 {[%clk
0:00:20.7]} 44. b8=Q {[%clk 0:01:00.8]} 44... Bxb8 {[%clk 0:00:21.5]} 45. Kxb8
{[%clk 0:01:01.7]} 45... Kc6 {[%clk 0:00:21.8]} 46. Kc8 {[%clk 0:01:02.3]} 46...
Kd5 {[%clk 0:00:21.5]} 47. Kd7 {[%clk 0:01:02.2]} 47... Ke5 {[%clk 0:00:21.9]}
48. Ke7 {[%clk 0:01:02.7]} 48... Kf5 {[%clk 0:00:22.4]} 49. Kf7 {[%clk
0:01:03.3]} 49... Ke4 {[%clk 0:00:22.8]} 50. Kg6 {[%clk 0:01:03.2]} 50... Kf3
{[%clk 0:00:22.1]} 51. Kxh5 {[%clk 0:01:03.7]} 51... Kg2 {[%clk 0:00:22.5]} 52.
Kxg4 {[%clk 0:01:04.3]} 52... Kh2 {[%clk 0:00:22.7]} 53. Kh5 {[%clk 0:01:04.8]}
1-0

[Event "Late-Titled-Tuesday-Blitz-October-10-2023"]
[Site "Chess.com"]
[Date "2023.10.10"]
[Round "3"]
[White "Zhbugnoimt"]
[Black "Xqswdc"]
[Result "1-0"]
[WhiteElo "2559"]
[BlackElo "2332"]
[TimeControl "180+1"]
[EndTime "14:26:22 PDT"]
[Termination "Zhbugnoimt won on time"]

1. e4 {[%clk 0:03:00.9]} 1... c5 {[%clk 0:02:56.9]} 2. Nf3 {[%clk 0:02:55.4]}
2... e6 {[%clk 0:02:56.6]} 3. d4 {[%clk 0:02:55.4]} 3... cxd4 {[%clk 0:02:57.5]}
4. Nxd4 {[%clk 0:02:56.3]} 4... Nf6 {[%clk 0:02:57.8]} 5. Nc3 {[%clk 0:02:56.8]}
5... Nc6 {[%clk 0:02:58.6]} 6. Nxc6 {[%clk 0:02:57.4]} 6... bxc6 {[%clk
0:02:59.5]} 7. e5 {[%clk 0:02:58.3]} 7... Nd5 {[%clk 0:02:59.9]} 8. Ne4 {[%clk
0:02:59]} 8... Qc7 {[%clk 0:03:00.3]} 9. f4 {[%clk 0:02:59.6]} 9... Qb6 {[%clk
0:03:00.3]} 10. c4 {[%clk 0:03:00.2]} 10... Ne3 {[%clk 0:02:59.5]} 11. Qd3
{[%clk 0:02:58.3]} 11... Bb4+ {[%clk 0:02:59.8]} 12. Bd2 {[%clk 0:02:57.9]}
12... Ba6 {[%clk 0:02:58.8]} 13. Bxb4 {[%clk 0:02:54.1]} 13... Qxb4+ {[%clk
0:02:58.9]} 14. Kf2 {[%clk 0:02:53.7]} 14... Qxb2+ {[%clk 0:02:31.4]} 15. Be2
{[%clk 0:02:52.9]} 15... Nxc4 {[%clk 0:02:30.2]} 16. Rab1 {[%clk 0:02:40.6]}
16... Nxe5 {[%clk 0:02:26.4]} 17. fxe5 {[%clk 0:02:40.2]} 17... Qxe5 {[%clk
0:02:26.4]} 18. Qxa6 {[%clk 0:02:38.6]} 18... Qxe4 {[%clk 0:02:25.8]} 19. Rhd1
{[%clk 0:02:38.7]} 19... O-O {[%clk 0:02:21.2]} 20. Bf3 {[%clk 0:02:34.4]} 20...
Qf5 {[%clk 0:02:10.5]} 21. Kg1 {[%clk 0:02:32.6]} 21... Qc5+ {[%clk 0:01:42.6]}
22. Kh1 {[%clk 0:02:31.3]} 22... d5 {[%clk 0:01:36.9]} 23. Rbc1 {[%clk
0:02:27.9]} 23... Qb6 {[%clk 0:01:30.3]} 24. Rxc6 {[%clk 0:02:27.3]} 24... Qb2
{[%clk 0:01:11]} 25. h3 {[%clk 0:02:23.7]} 25... g6 {[%clk 0:01:08.2]} 26. Re1
{[%clk 0:01:56.8]} 26... Qf2 {[%clk 0:00:57.6]} 27. Rf1 {[%clk 0:01:53.9]} 27...
Qd4 {[%clk 0:00:51.5]} 28. Rd1 {[%clk 0:01:52.7]} 28... Qe3 {[%clk 0:00:49.9]}
29. Rc7 {[%clk 0:01:46.6]} 29... Rfb8 {[%clk 0:00:31.4]} 30. Qc6 {[%clk
0:01:38.3]} 30... a5 {[%clk 0:00:18.5]} 31. Rf1 {[%clk 0:01:37.1]} 31... Rf8
{[%clk 0:00:17.5]} 32. Bg4 {[%clk 0:01:26.3]} 32... h5 {[%clk 0:00:10.5]} 33.
Bd1 {[%clk 0:01:11.2]} 33... Qd3 {[%clk 0:00:06.7]} 34. Kg1 {[%clk 0:00:54.8]}
34... Qe3+ {[%clk 0:00:06.2]} 35. Kh1 {[%clk 0:00:54.4]} 35... Qd3 {[%clk
0:00:06.7]} 36. Rg1 {[%clk 0:00:51.8]} 36... Ra7 {[%clk 0:00:06.9]} 37. Rxa7
{[%clk 0:00:51]} 1-0

[Event "Late-Titled-Tuesday-Blitz-October-10-2023"]
[Site "Chess.com"]
[Date "2023.10.10"]
[Round "3"]
[White "Grandmaster1369"]
[Black "Polish_fighter3000"]
[Result "0-1"]
[WhiteElo "2765"]
[BlackElo "3055"]
[TimeControl "180+1"]
[EndTime "14:26:33 PDT"]
[Termination "Polish_fighter3000 won by resignation"]

1. e4 {[%clk 0:02:57.3]} 1... c5 {[%clk 0:03:00.1]} 2. Nc3 {[%clk 0:02:56.6]}
2... Nc6 {[%clk 0:02:58.8]} 3. f4 {[%clk 0:02:55.2]} 3... e6 {[%clk 0:02:54]} 4.
Nf3 {[%clk 0:02:55.3]} 4... d5 {[%clk 0:02:53.9]} 5. Bb5 {[%clk 0:02:55.8]} 5...
Nf6 {[%clk 0:02:38.6]} 6. e5 {[%clk 0:02:55.5]} 6... Nd7 {[%clk 0:02:38.5]} 7.
Bxc6 {[%clk 0:02:56.1]} 7... bxc6 {[%clk 0:02:38.6]} 8. d3 {[%clk 0:02:56.9]}
8... a5 {[%clk 0:02:25.3]} 9. O-O {[%clk 0:02:56.5]} 9... a4 {[%clk 0:02:25.5]}
10. Qe2 {[%clk 0:02:53.7]} 10... Be7 {[%clk 0:02:23.6]} 11. Nd1 {[%clk
0:02:53.6]} 11... c4 {[%clk 0:02:16.6]} 12. d4 {[%clk 0:02:53.1]} 12... c3
{[%clk 0:02:06.2]} 13. Qf2 {[%clk 0:02:32.3]} 13... cxb2 {[%clk 0:02:05.4]} 14.
Bxb2 {[%clk 0:02:32.2]} 14... O-O {[%clk 0:02:03.2]} 15. Ne3 {[%clk 0:02:31.4]}
15... a3 {[%clk 0:01:51.3]} 16. Bc1 {[%clk 0:02:27.7]} 16... c5 {[%clk
0:01:50.7]} 17. c3 {[%clk 0:02:26]} 17... Ba6 {[%clk 0:01:43.4]} 18. Rd1 {[%clk
0:02:23.2]} 18... cxd4 {[%clk 0:01:30.9]} 19. cxd4 {[%clk 0:02:23]} 19... f5
{[%clk 0:01:31]} 20. Bd2 {[%clk 0:02:00.7]} 20... Nb6 {[%clk 0:01:27.7]} 21. Ba5
{[%clk 0:01:40.2]} 21... Bb5 {[%clk 0:01:25.1]} 22. Qe1 {[%clk 0:01:40.3]} 22...
Ra6 {[%clk 0:01:20.5]} 23. Rab1 {[%clk 0:01:37.4]} 23... Qd7 {[%clk 0:01:19.9]}
24. Bb4 {[%clk 0:01:35.2]} 24... Bc4 {[%clk 0:00:51.6]} 25. Bxe7 {[%clk
0:01:32]} 25... Qxe7 {[%clk 0:00:52.5]} 26. Qd2 {[%clk 0:01:28.5]} 26... Rc8
{[%clk 0:00:47.8]} 27. Rdc1 {[%clk 0:01:23.8]} 27... h6 {[%clk 0:00:47.7]} 28.
h3 {[%clk 0:01:24]} 28... Na4 {[%clk 0:00:41.6]} 29. Kh2 {[%clk 0:01:22.8]}
29... Nb2 {[%clk 0:00:40.9]} 30. g4 {[%clk 0:01:16.8]} 30... fxg4 {[%clk
0:00:37.4]} 31. hxg4 {[%clk 0:01:17.3]} 31... Raa8 {[%clk 0:00:32.4]} 32. Ra1
{[%clk 0:01:09]} 32... Bd3 {[%clk 0:00:27.9]} 33. Kg3 {[%clk 0:00:49.8]} 33...
Be4 {[%clk 0:00:27.8]} 34. Rxc8+ {[%clk 0:00:43.4]} 34... Rxc8 {[%clk
0:00:28.7]} 35. Rc1 {[%clk 0:00:43.8]} 35... Rf8 {[%clk 0:00:28.2]} 36. Rc5
{[%clk 0:00:37.5]} 36... Nd3 {[%clk 0:00:19.7]} 37. Rc3 {[%clk 0:00:37.4]} 37...
Nxf4 {[%clk 0:00:19.6]} 38. Rxa3 {[%clk 0:00:37.9]} 38... Nh5+ {[%clk
0:00:17.7]} 39. gxh5 {[%clk 0:00:36.5]} 39... Rxf3+ {[%clk 0:00:18.2]} 0-1

[Event "Late-Titled-Tuesday-Blitz-October-10-2023"]
[Site "Chess.com"]
[Date "2023.10.10"]
[Round "3"]
[White "Blackwhite017"]
[Black "nicholas_ilic"]
[Result "0-1"]
[WhiteElo "2033"]
[BlackElo "2306"]
[TimeControl "180+1"]
[EndTime "14:26:33 PDT"]
[Termination "nicholas_ilic won by resignation"]

1. e4 {[%clk 0:03:00.9]} 1... c5 {[%clk 0:02:59.3]} 2. Nf3 {[%clk 0:03:00.8]}
2... Nc6 {[%clk 0:02:58.6]} 3. g3 {[%clk 0:02:57.6]} 3... g6 {[%clk 0:02:58]} 4.
Bg2 {[%clk 0:02:57.7]} 4... Bg7 {[%clk 0:02:57.9]} 5. O-O {[%clk 0:02:57.7]}
5... Nf6 {[%clk 0:02:57.3]} 6. Re1 {[%clk 0:02:57.4]} 6... e5 {[%clk 0:02:56.8]}
7. c3 {[%clk 0:02:43.5]} 7... d6 {[%clk 0:02:51.2]} 8. d4 {[%clk 0:02:36.9]}
8... Qc7 {[%clk 0:02:50.4]} 9. d5 {[%clk 0:02:35.8]} 9... Ne7 {[%clk 0:02:49.9]}
10. c4 {[%clk 0:02:34.2]} 10... O-O {[%clk 0:02:49.3]} 11. Nc3 {[%clk
0:02:32.2]} 11... Ne8 {[%clk 0:02:47.6]} 12. h4 {[%clk 0:02:26.9]} 12... f5
{[%clk 0:02:45.3]} 13. Ng5 {[%clk 0:02:20.1]} 13... f4 {[%clk 0:02:33.5]} 14.
Ne6 {[%clk 0:01:58.5]} 14... Bxe6 {[%clk 0:02:32.1]} 15. dxe6 {[%clk 0:01:59.4]}
15... Qc8 {[%clk 0:02:25.6]} 16. Bh3 {[%clk 0:01:55.5]} 16... Qd8 {[%clk
0:02:08.7]} 17. Nd5 {[%clk 0:01:35.8]} 17... Nxd5 {[%clk 0:02:04.5]} 18. cxd5
{[%clk 0:01:35.7]} 18... g5 {[%clk 0:02:03.5]} 19. hxg5 {[%clk 0:01:11.8]} 19...
Qxg5 {[%clk 0:02:02.3]} 20. Qg4 {[%clk 0:01:06.8]} 20... Qe7 {[%clk 0:02:00.8]}
21. gxf4 {[%clk 0:00:56]} 21... exf4 {[%clk 0:01:52.8]} 22. Bxf4 {[%clk
0:00:55.2]} 22... Kh8 {[%clk 0:01:48.7]} 23. Kh1 {[%clk 0:00:40.8]} 23... Bxb2
{[%clk 0:01:46.1]} 24. Rab1 {[%clk 0:00:40.6]} 24... Rg8 {[%clk 0:01:42.2]} 25.
Qxg8+ {[%clk 0:00:11.6]} 25... Kxg8 {[%clk 0:01:41.1]} 26. Rxb2 {[%clk
0:00:11.2]} 26... Qh4 {[%clk 0:01:37.6]} 27. Rg1+ {[%clk 0:00:07.9]} 27... Kh8
{[%clk 0:01:27.8]} 28. Rb3 {[%clk 0:00:06.7]} 28... Qxf4 {[%clk 0:01:25.3]} 29.
Rbg3 {[%clk 0:00:07.1]} 29... Nf6 {[%clk 0:01:24.5]} 30. Bf5 {[%clk 0:00:05.2]}
30... Nxe4 {[%clk 0:01:15.6]} 31. Bxe4 {[%clk 0:00:03.7]} 31... Qxe4+ {[%clk
0:01:15.3]} 32. Kh2 {[%clk 0:00:04.6]} 32... Qxd5 {[%clk 0:01:13.3]} 33. e7
{[%clk 0:00:04]} 33... Qh5+ {[%clk 0:01:12.7]} 34. Kg2 {[%clk 0:00:04]} 34...
Qf7 {[%clk 0:01:11.2]} 35. Re1 {[%clk 0:00:04.1]} 35... Re8 {[%clk 0:01:09.2]}
36. Rf3 {[%clk 0:00:04.2]} 36... Qd5 {[%clk 0:01:07.8]} 37. Kg3 {[%clk
0:00:03.6]} 37... Qg5+ {[%clk 0:01:03.8]} 38. Kh2 {[%clk 0:00:03.5]} 38... Rxe7
{[%clk 0:01:04]} 39. Rg3 {[%clk 0:00:01.7]} 39... Qh4+ {[%clk 0:01:02.8]} 40.
Rh3 {[%clk 0:00:02.1]} 40... Qxh3+ {[%clk 0:01:02.9]} 41. Kxh3 {[%clk 0:00:03]}
41... Rxe1 {[%clk 0:01:03.1]} 0-1

[Event "Late-Titled-Tuesday-Blitz-October-10-2023"]
[Site "Chess.com"]
[Date "2023.10.10"]
[Round "3"]
[White "Herman-NY"]
[Black "tptagain"]
[Result "0-1"]
[WhiteElo "2549"]
[BlackElo "2879"]
[TimeControl "180+1"]
[EndTime "14:26:37 PDT"]
[Termination "tptagain won by resignation"]

1. e4 {[%clk 0:03:00.9]} 1... c5 {[%clk 0:02:43]} 2. Nf3 {[%clk 0:03:00.9]} 2...
Nc6 {[%clk 0:02:43.7]} 3. d4 {[%clk 0:03:01.4]} 3... cxd4 {[%clk 0:02:44.6]} 4.
Nxd4 {[%clk 0:03:02.3]} 4... e5 {[%clk 0:02:44.8]} 5. Nb5 {[%clk 0:03:02.5]}
5... d6 {[%clk 0:02:45.4]} 6. c4 {[%clk 0:03:02.8]} 6... Be6 {[%clk 0:02:45.2]}
7. N1c3 {[%clk 0:03:03]} 7... a6 {[%clk 0:02:45.2]} 8. Na3 {[%clk 0:03:03.3]}
8... Be7 {[%clk 0:02:45.8]} 9. Be2 {[%clk 0:03:00.6]} 9... Bg5 {[%clk
0:02:46.4]} 10. O-O {[%clk 0:03:00.4]} 10... Nh6 {[%clk 0:02:46.7]} 11. Nc2
{[%clk 0:02:58]} 11... O-O {[%clk 0:02:45.6]} 12. Kh1 {[%clk 0:02:10.4]} 12...
Bxc1 {[%clk 0:02:41.7]} 13. Rxc1 {[%clk 0:02:09.2]} 13... f5 {[%clk 0:02:37.2]}
14. f4 {[%clk 0:01:47.9]} 14... Rc8 {[%clk 0:02:36.7]} 15. b3 {[%clk 0:01:37.7]}
15... exf4 {[%clk 0:02:29.6]} 16. Rxf4 {[%clk 0:01:18.4]} 16... Qf6 {[%clk
0:01:59.1]} 17. Nd5 {[%clk 0:01:14.6]} 17... Qe5 {[%clk 0:01:57.6]} 18. exf5
{[%clk 0:00:49.8]} 18... Nxf5 {[%clk 0:01:57.4]} 19. Bf3 {[%clk 0:00:36.1]}
19... Qb2 {[%clk 0:01:23.6]} 20. Bg4 {[%clk 0:00:24.1]} 20... Kh8 {[%clk
0:01:17]} 21. Bxf5 {[%clk 0:00:20.3]} 21... Rxf5 {[%clk 0:01:06.3]} 22. Rxf5
{[%clk 0:00:20.6]} 22... Bxf5 {[%clk 0:01:07.2]} 23. Nce3 {[%clk 0:00:15.7]}
23... Bg6 {[%clk 0:01:00.5]} 24. Nf4 {[%clk 0:00:07.5]} 24... Be4 {[%clk
0:00:56.7]} 25. Qe1 {[%clk 0:00:05.2]} 25... Qxa2 {[%clk 0:00:47.6]} 26. Nf1
{[%clk 0:00:04.2]} 26... Re8 {[%clk 0:00:43.3]} 27. Qh4 {[%clk 0:00:03.6]} 27...
Qxb3 {[%clk 0:00:22.3]} 28. Re1 {[%clk 0:00:03.7]} 28... Qc3 {[%clk 0:00:22.9]}
29. Ng3 {[%clk 0:00:02.3]} 29... Qxe1+ {[%clk 0:00:20.2]} 0-1

[Event "Late-Titled-Tuesday-Blitz-October-10-2023"]
[Site "Chess.com"]
[Date "2023.10.10"]
[Round "3"]
[White "annacramling"]
[Black "GlavkonVVS"]
[Result "0-1"]
[WhiteElo "2215"]
[BlackElo "2527"]
[TimeControl "180+1"]
[EndTime "14:26:37 PDT"]
[Termination "GlavkonVVS won on time"]

1. d4 {[%clk 0:03:00.9]} 1... Nf6 {[%clk 0:03:00.6]} 2. c4 {[%clk 0:03:00.7]}
2... e6 {[%clk 0:03:01.2]} 3. Nc3 {[%clk 0:03:00.4]} 3... Bb4 {[%clk 0:03:01.5]}
4. Qc2 {[%clk 0:03:00.3]} 4... c5 {[%clk 0:03:01]} 5. dxc5 {[%clk 0:03:00.4]}
5... Bxc5 {[%clk 0:02:59.9]} 6. Nf3 {[%clk 0:03:00.4]} 6... O-O {[%clk
0:02:59.8]} 7. Bg5 {[%clk 0:03:00.6]} 7... b6 {[%clk 0:02:59.8]} 8. e3 {[%clk
0:03:00.9]} 8... h6 {[%clk 0:03:00.4]} 9. Bh4 {[%clk 0:03:00.5]} 9... Bb7 {[%clk
0:03:01]} 10. Be2 {[%clk 0:02:59]} 10... Be7 {[%clk 0:03:00.9]} 11. O-O {[%clk
0:02:59]} 11... d6 {[%clk 0:03:01.1]} 12. Rfd1 {[%clk 0:02:55.3]} 12... Nbd7
{[%clk 0:03:01.3]} 13. Nb5 {[%clk 0:02:53.2]} 13... Qb8 {[%clk 0:03:01.4]} 14.
Bg3 {[%clk 0:02:52.8]} 14... Ne5 {[%clk 0:03:01.9]} 15. Nxe5 {[%clk 0:02:20.3]}
15... dxe5 {[%clk 0:03:01.7]} 16. Qc3 {[%clk 0:02:20.7]} 16... Ne4 {[%clk
0:02:30.8]} 17. Qxe5 {[%clk 0:02:19.2]} 17... Nxg3 {[%clk 0:02:27.3]} 18. Qxg3
{[%clk 0:02:18.9]} 18... Qxg3 {[%clk 0:02:25.7]} 19. hxg3 {[%clk 0:02:18.9]}
19... Rfd8 {[%clk 0:02:25.4]} 20. Bf3 {[%clk 0:02:07.7]} 20... Bxf3 {[%clk
0:02:22]} 21. gxf3 {[%clk 0:02:08.6]} 21... a6 {[%clk 0:02:21.2]} 22. Nd4 {[%clk
0:02:05]} 22... Rac8 {[%clk 0:02:20.4]} 23. b3 {[%clk 0:02:05.1]} 23... Bf6
{[%clk 0:02:20]} 24. Rac1 {[%clk 0:02:02]} 24... g6 {[%clk 0:02:11]} 25. f4
{[%clk 0:01:54.9]} 25... h5 {[%clk 0:02:02.6]} 26. Nf3 {[%clk 0:01:54.3]} 26...
Kf8 {[%clk 0:01:57.8]} 27. Kf1 {[%clk 0:01:54.3]} 27... Bb2 {[%clk 0:01:55.7]}
28. Rb1 {[%clk 0:01:52.1]} 28... Ba3 {[%clk 0:01:54.9]} 29. Ke2 {[%clk
0:01:51.3]} 29... Ke7 {[%clk 0:01:53.3]} 30. Rxd8 {[%clk 0:01:39.5]} 30... Rxd8
{[%clk 0:01:53.5]} 31. b4 {[%clk 0:01:39.3]} 31... Rc8 {[%clk 0:01:52]} 32. Rb3
{[%clk 0:01:33.6]} 32... Bc1 {[%clk 0:01:50]} 33. Kd1 {[%clk 0:01:33]} 33...
Rxc4 {[%clk 0:01:48]} 34. Ne5 {[%clk 0:01:17.2]} 34... Rc7 {[%clk 0:01:40.2]}
35. Nd3 {[%clk 0:01:10.1]} 35... Bxe3 {[%clk 0:01:35]} 36. fxe3 {[%clk
0:01:09.4]} 36... f6 {[%clk 0:01:31.9]} 37. a4 {[%clk 0:01:06.6]} 37... g5
{[%clk 0:01:31.4]} 38. fxg5 {[%clk 0:00:54]} 38... fxg5 {[%clk 0:01:31.2]} 39.
Nf2 {[%clk 0:00:52.7]} 39... Rc4 {[%clk 0:01:28.7]} 40. e4 {[%clk 0:00:50.8]}
40... a5 {[%clk 0:01:25.8]} 41. bxa5 {[%clk 0:00:50.2]} 41... bxa5 {[%clk
0:01:26]} 42. Rb7+ {[%clk 0:00:47]} 42... Kf6 {[%clk 0:01:26.2]} 43. e5+ {[%clk
0:00:17]} 43... Kf5 {[%clk 0:01:18.8]} 44. Rh7 {[%clk 0:00:07.1]} 44... h4
{[%clk 0:01:14.4]} 45. gxh4 {[%clk 0:00:03.4]} 45... gxh4 {[%clk 0:01:14.4]} 46.
Rh5+ {[%clk 0:00:03]} 46... Kg6 {[%clk 0:01:13.1]} 47. Rh8 {[%clk 0:00:02.2]}
47... Rxa4 {[%clk 0:01:12.1]} 48. Nd3 {[%clk 0:00:02]} 48... Kg5 {[%clk
0:01:08.7]} 0-1

[Event "Late-Titled-Tuesday-Blitz-October-10-2023"]
[Site "Chess.com"]
[Date "2023.10.10"]
[Round "3"]
[White "Javylavilla"]
[Black "Bala-Afiada"]
[Result "1-0"]
[WhiteElo "2366"]
[BlackElo "1929"]
[TimeControl "180+1"]
[EndTime "14:26:37 PDT"]
[Termination "Javylavilla won by resignation"]

1. e4 {[%clk 0:03:00.9]} 1... c5 {[%clk 0:02:59.1]} 2. Nf3 {[%clk 0:03:00.2]}
2... Nc6 {[%clk 0:02:59.4]} 3. Bb5 {[%clk 0:02:59.3]} 3... d6 {[%clk 0:02:58.9]}
4. c3 {[%clk 0:02:57.1]} 4... Nf6 {[%clk 0:02:57]} 5. O-O {[%clk 0:02:46.1]}
5... Bg4 {[%clk 0:02:55.3]} 6. h3 {[%clk 0:02:41.3]} 6... Bxf3 {[%clk
0:02:55.3]} 7. Qxf3 {[%clk 0:02:42.1]} 7... e5 {[%clk 0:02:55.8]} 8. d4 {[%clk
0:02:39.6]} 8... cxd4 {[%clk 0:02:55.8]} 9. cxd4 {[%clk 0:02:39.7]} 9... a6
{[%clk 0:02:49.6]} 10. Ba4 {[%clk 0:02:36.8]} 10... b5 {[%clk 0:02:46.2]} 11. d5
{[%clk 0:02:36.4]} 11... Nd4 {[%clk 0:02:42.6]} 12. Qd1 {[%clk 0:02:29.3]} 12...
bxa4 {[%clk 0:02:40.4]} 13. Qxa4+ {[%clk 0:02:30.2]} 13... Qd7 {[%clk
0:02:41.1]} 14. Qd1 {[%clk 0:02:28.2]} 14... Nxe4 {[%clk 0:02:32.4]} 15. f4
{[%clk 0:02:26.7]} 15... Ng3 {[%clk 0:02:18.9]} 16. Re1 {[%clk 0:02:24.5]} 16...
Nge2+ {[%clk 0:01:39.5]} 17. Rxe2 {[%clk 0:02:23.6]} 17... Nxe2+ {[%clk
0:01:40.4]} 18. Qxe2 {[%clk 0:02:24.5]} 18... f6 {[%clk 0:01:36.2]} 19. Nc3
{[%clk 0:02:23.4]} 19... Be7 {[%clk 0:01:26.5]} 20. Bd2 {[%clk 0:02:17.3]} 20...
O-O {[%clk 0:01:25.6]} 21. Rf1 {[%clk 0:02:16.9]} 21... Rab8 {[%clk 0:01:23.9]}
22. b3 {[%clk 0:02:16.2]} 22... Qa7+ {[%clk 0:01:20.9]} 23. Kh1 {[%clk
0:02:15.4]} 23... Bd8 {[%clk 0:01:20.3]} 24. fxe5 {[%clk 0:02:12]} 24... fxe5
{[%clk 0:01:20]} 25. Ne4 {[%clk 0:02:09.4]} 25... Rxf1+ {[%clk 0:01:16.4]} 26.
Qxf1 {[%clk 0:02:10.3]} 26... Qe7 {[%clk 0:01:12.5]} 27. Qxa6 {[%clk 0:02:07.3]}
27... Bc7 {[%clk 0:00:56.3]} 28. Qc4 {[%clk 0:02:02.3]} 28... Rf8 {[%clk
0:00:54.5]} 29. a4 {[%clk 0:01:59.7]} 29... Qf7 {[%clk 0:00:52.9]} 30. a5 {[%clk
0:01:46.3]} 30... Qf1+ {[%clk 0:00:52.5]} 31. Qxf1 {[%clk 0:01:46.6]} 31...
Rxf1+ {[%clk 0:00:53.4]} 32. Kh2 {[%clk 0:01:47.4]} 32... Ra1 {[%clk 0:00:48.2]}
33. b4 {[%clk 0:01:47.2]} 33... Rb1 {[%clk 0:00:45.3]} 34. a6 {[%clk 0:01:30.1]}
34... Bb8 {[%clk 0:00:34]} 35. Kg3 {[%clk 0:01:23.4]} 35... Rb3+ {[%clk
0:00:29.5]} 36. Kg4 {[%clk 0:01:16.7]} 36... Rb2 {[%clk 0:00:29.3]} 37. Kf5
{[%clk 0:01:15.6]} 37... Ra2 {[%clk 0:00:25.8]} 38. b5 {[%clk 0:01:14.3]} 38...
g6+ {[%clk 0:00:20.3]} 39. Ke6 {[%clk 0:01:13.4]} 39... Ra4 {[%clk 0:00:21]} 40.
Nf6+ {[%clk 0:01:09.9]} 40... Kg7 {[%clk 0:00:19.8]} 41. Ne8+ {[%clk 0:01:06.6]}
41... Kf8 {[%clk 0:00:20.2]} 42. Nxd6 {[%clk 0:01:04.3]} 42... e4 {[%clk
0:00:18.7]} 43. Be3 {[%clk 0:00:59]} 43... Ra3 {[%clk 0:00:17.2]} 44. Bc5 {[%clk
0:00:56.7]} 44... Rb3 {[%clk 0:00:16.8]} 45. Nxe4+ {[%clk 0:00:55.9]} 45... Kg7
{[%clk 0:00:16.8]} 46. b6 {[%clk 0:00:54.6]} 46... h6 {[%clk 0:00:13.3]} 47. a7
{[%clk 0:00:54]} 47... Bxa7 {[%clk 0:00:13.9]} 48. bxa7 {[%clk 0:00:54.9]} 1-0